bitfinex/quotes_ETHUSD_20250223
["timestamp","ask_amount","ask_price","bid_price","bid_amount"]
[1740324635692,2.9769,2800.0,2799.8,2.85729]
[1740324635874,2.9769,2800.0,2799.9,0.03699852]
[1740324637386,2.9769,2800.0,2799.7,2.85744]
[1740324637617,2.9769,2800.0,2799.8,0.03699852]
[1740324637934,0.8286,2800.2,2799.6,2.85746]
[1740324638079,1.20915,2800.2,2799.9,0.03699852]
[1740324638281,1.20915,2800.2,2799.7,2.8574]
[1740324638627,1.20915,2800.2,2799.8,2.85733]
[1740324638929,1.20915,2800.2,2799.8,2.89432852]
[1740324641020,1.20915,2800.2,2799.8,0.03699852]
[1740324641220,1.20915,2800.2,2799.7,2.85743]
[1740324641398,1.20915,2800.2,2799.9,0.03713262]
[1740324641725,1.20915,2800.2,2799.4,0.05130071]
[1740324641926,0.8286,2800.2,2800.1,2.85704]
[1740324642153,0.8286,2800.2,2799.9,2.85714]
[1740324642353,0.8286,2800.2,2800.1,0.03713262]
[1740324642555,0.8286,2800.2,2800.0,2.85712]
[1740324642755,0.8286,2800.2,2800.1,0.03713262]
[1740324642959,2.9769,2800.7,2800.1,0.03713262]
[1740324643260,0.8147,2801.4,2800.9,2.85622]
[1740324643447,3.7916,2801.4,2800.8,2.8563]
[1740324643818,3.7916,2801.4,2800.9,0.03713262]
[1740324644020,0.37916,2801.3,2800.9,2.89332262]
[1740324644220,0.37916,2801.3,2800.9,0.03713262]
[1740324644420,0.37916,2801.3,2800.7,2.85641]
[1740324644626,0.37916,2801.3,2801.0,0.03713262]
[1740324644928,0.37916,2801.3,2800.7,2.85641]
[1740324645124,0.417076,2801.2,2801.1,0.03713262]
[1740324645324,0.417076,2801.2,2800.7,2.85641]
[1740324645543,0.417076,2801.2,2801.1,0.03713262]
[1740324645745,0.417076,2801.2,2800.7,2.85633]
[1740324645945,0.417076,2801.2,2801.1,0.03713262]
[1740324646251,0.8286,2801.1,2800.1,3.63358]
[1740324646438,0.8286,2801.1,2800.3,2.85683]
[1740324646439,2.9769,2801.0,2800.3,2.85683]
[1740324646638,2.9769,2801.0,2800.3,5.71366]
[1740324646639,0.38055,2800.9,2800.3,5.71366]
[1740324646837,0.38055,2800.9,2800.3,5.71361]
[1740324647058,0.38055,2800.9,2800.1,3.63359]
[1740324647361,0.8286,2800.8,2800.2,2.85688]
[1740324647866,3.8055,2800.8,2799.9,2.85721]
[1740324648063,0.8286,2800.6,2799.7,2.85735]
[1740324648238,0.8286,2800.6,2800.2,2.85687]
[1740324648443,0.8286,2800.6,2800.4,2.85672]
[1740324648642,2.9769,2800.8,2800.5,2.85653]
[1740324648844,2.9769,2800.8,2800.6,2.85652]
[1740324649022,2.9769,2800.8,2800.5,2.85653]
[1740324649786,2.9769,2800.8,2800.3,5.71355]
[1740324649991,2.9769,2800.8,2800.2,2.85693]
[1740324650156,2.9769,2800.8,2800.5,2.85657]
[1740324650793,3.35745,2800.8,2800.5,2.85657]
[1740324651100,3.35745,2800.8,2800.5,5.71313]
[1740324651270,2.9769,2800.8,2800.5,2.85656]
[1740324651457,2.9769,2800.8,2800.5,5.71312]
[1740324651658,2.9769,2800.8,2800.5,2.85656]
[1740324652083,2.9769,2800.8,2800.3,2.85678]
[1740324652671,0.8286,2800.9,2800.3,2.85678]
[1740324652990,0.8286,2800.9,2799.9,2.85718]
[1740324653698,0.8286,2800.9,2800.2,2.85686]
[1740324653990,0.8286,2800.9,2799.8,0.7651]
[1740324654205,0.8286,2800.9,2800.0,2.85707]
[1740324654354,0.8286,2800.9,2800.1,2.85703]
[1740324654565,0.8286,2800.9,2800.2,2.85688]
[1740324654998,0.8286,2800.9,2799.9,2.85724]
[1740324655274,0.8286,2800.9,2800.0,2.85707]
[1740324655471,1.20915,2800.9,2799.8,3.38853135]
[1740324655670,1.20915,2800.9,2800.5,2.85657]
[1740324655911,1.20915,2800.9,2800.5,5.71314]
[1740324656208,1.20915,2800.9,2800.5,2.85657]
[1740324656604,1.20915,2800.9,2800.6,0.03603117]
[1740324657009,1.20915,2800.9,2800.7,2.85641]
[1740324657374,1.20915,2800.9,2800.8,0.03603117]
[1740324657590,1.20915,2800.9,2800.7,2.85641]
[1740324657883,1.20915,2800.9,2800.8,0.03603117]
[1740324658084,2.9769,2801.1,2800.3,0.7651]
[1740324658406,2.9769,2801.3,2801.2,2.85591]
[1740324658606,2.9769,2801.3,2801.2,0.03587796]
[1740324659676,2.9769,2801.3,2800.9,2.85618]
[1740324659875,3.35328,2801.3,2801.2,0.03587796]
[1740324660510,3.35328,2801.3,2800.9,2.85618]
[1740324660711,3.35328,2801.3,2801.2,0.03587796]
[1740324660912,3.35328,2801.3,2801.0,2.8561]
[1740324661384,3.35328,2801.3,2801.1,0.03587796]
[1740324661584,0.37638,2801.3,2801.1,0.03587796]
[1740324661807,0.7869,2801.5,2801.0,2.85611]
[1740324662013,0.7869,2801.5,2801.1,0.03587796]
[1740324662473,0.7869,2801.5,2801.0,2.85607]
[1740324662680,0.7869,2801.5,2801.2,0.03587796]
[1740324662886,0.7869,2801.5,2801.1,2.85602]
[1740324663080,0.37638,2801.4,2801.3,0.03587796]
[1740324663383,2.9769,2801.6,2801.3,2.89159796]
[1740324663888,0.7869,2801.8,2801.6,2.8555]
[1740324664222,0.7869,2801.8,2801.7,0.03488227]
[1740324664779,2.9769,2801.9,2801.7,0.03488227]
[1740324664780,2.9769,2801.9,2801.7,2.89028227]
[1740324665001,2.9769,2801.9,2801.7,0.03488227]
[1740324665197,3.3524,2801.9,2801.5,2.85556]
[1740324665425,3.3524,2801.9,2801.6,0.03488227]
[1740324666979,3.3524,2801.9,2801.7,2.85535]
[1740324667179,3.3524,2801.9,2801.6,2.8555]
[1740324667380,0.3755,2801.9,2801.7,0.03488227]
[1740324667806,0.3755,2801.9,2801.7,2.89027227]
[1740324667991,0.3755,2801.9,2801.7,0.03488227]
[1740324668329,0.7781,2801.8,2800.8,5.39]
[1740324668522,3.755,2801.8,2800.9,2.85617]
[1740324668735,3.755,2801.8,2801.2,2.85585]
[1740324668922,2.9769,2801.8,2801.6,2.85548]
[1740324669120,0.7781,2802.0,2801.4,2.85562]
[1740324669319,0.7781,2802.0,2801.4,5.71126]
[1740324669502,0.7781,2802.0,2801.6,2.8555]
[1740324669709,0.7781,2802.0,2801.4,2.85563]
[1740324670005,0.7781,2802.0,2801.3,0.7796]
[1740324670203,2.9769,2802.1,2801.5,2.85552]
[1740324670727,2.9769,2802.1,2801.3,3.63535]
[1740324670728,2.9769,2802.1,2801.3,0.7796]
[1740324670892,2.9769,2802.1,2801.5,2.85554]
[1740324671725,2.9769,2802.1,2801.6,0.03449946]
[1740324674637,2.9769,2802.1,2801.6,2.88991946]
[1740324674941,2.9769,2802.1,2801.6,0.03449946]
[1740324675151,2.9769,2802.1,2801.7,2.85539]
[1740324675309,2.9769,2802.1,2801.6,0.03449946]
[1740324675500,3.68229879,2802.1,2801.5,2.85552]
[1740324675703,3.68229879,2802.1,2801.7,0.03449946]
[1740324675927,3.68229879,2802.1,2801.3,3.63535]
[1740324676112,3.68229879,2802.1,2801.8,0.03449946]
[1740324676512,3.68229879,2802.1,2801.4,2.8557]
[1740324676723,3.68229879,2802.1,2801.9,0.03449946]
[1740324676928,3.68229879,2802.1,2801.4,2.8557]
[1740324677113,3.68229879,2802.1,2802.0,0.03366692]
[1740324677313,3.68229879,2802.1,2801.4,2.8557]
[1740324677622,3.68229879,2802.1,2802.0,0.03367648]
[1740324677957,3.68229879,2802.1,2801.4,2.85567]
[1740324678466,3.68229879,2802.1,2801.5,2.88927648]
[1740324679679,3.68229879,2802.1,2801.5,2.88922648]
[1740324680162,3.68229879,2802.1,2801.5,0.03367648]
[1740324680451,3.68229879,2802.1,2801.7,2.85538]
[1740324680828,3.68229879,2802.1,2801.5,2.85551]
[1740324681028,3.68229879,2802.1,2801.6,0.03367648]
[1740324681254,0.44923988,2802.0,2801.6,0.03367648]
[1740324682824,0.44923988,2802.0,2801.6,2.88916648]
[1740324683162,3.68229879,2802.1,2801.6,2.88916648]
[1740324683512,0.8101,2802.2,2801.7,2.8554]
[1740324683706,0.8101,2802.4,2801.8,0.8138]
[1740324683912,2.9769,2802.5,2802.1,2.85494]
[1740324684161,2.9769,2802.5,2801.9,0.03367648]
[1740324684457,2.9769,2802.5,2801.8,6.52426]
[1740324684673,2.9769,2802.5,2802.0,0.03338949]
[1740324684856,2.9769,2802.5,2801.8,3.66902]
[1740324684857,3.3556,2802.5,2801.9,2.85519]
[1740324685157,3.3556,2802.5,2802.1,0.03338949]
[1740324685358,3.3556,2802.5,2802.0,2.89104791]
[1740324685661,3.3556,2802.5,2802.0,2.85509]
[1740324685856,3.3556,2802.5,2802.1,0.03338949]
[1740324686431,3.3556,2802.5,2801.9,2.85519]
[1740324686764,2.9769,2802.5,2802.0,0.03338949]
[1740324687518,2.9769,2802.5,2802.1,2.85499]
[1740324687851,2.9769,2802.5,2802.2,0.03338949]
[1740324688246,2.9769,2802.5,2802.1,2.85493]
[1740324688551,2.9769,2802.5,2802.3,0.03338949]
[1740324688749,3.38298371,2802.5,2802.0,2.85501]
[1740324689048,2.9769,2802.5,2802.0,2.85501]
[1740324689831,2.9769,2802.5,2801.8,0.8138]
[1740324690039,2.9769,2802.5,2801.9,2.85511]
[1740324690987,2.9769,2802.5,2802.0,2.85501]
[1740324691129,2.9769,2802.5,2801.9,2.85511]
[1740324691331,2.9769,2802.5,2801.9,5.71025]
[1740324692430,2.9769,2802.5,2801.9,2.85511]
[1740324692635,2.9769,2802.5,2801.9,5.71026]
[1740324692836,2.9769,2802.5,2802.0,2.85508]
[1740324693132,0.7916,2802.4,2802.0,2.85508]
[1740324693767,1.16845,2802.4,2801.5,0.8163]
[1740324694065,0.7916,2802.1,2801.2,6.2063]
[1740324694229,3.7685,2802.1,2801.6,2.85545]
[1740324695319,3.7685,2802.1,2801.7,2.85539]
[1740324695721,2.9769,2802.1,2801.9,2.85511]
[1740324695956,0.7916,2802.4,2801.7,2.85534]
[1740324696265,0.7916,2802.4,2801.7,2.85535]
[1740324696435,0.7916,2802.4,2801.6,2.85551]
[1740324696636,3.0,2802.5,2801.4,2.85563]
[1740324696637,0.55,2802.3,2801.4,2.85563]
[1740324696971,0.7916,2802.2,2801.4,2.85563]
[1740324697363,0.7916,2802.2,2801.3,0.8163]
[1740324697662,0.7916,2801.8,2800.8,2.85622]
[1740324697816,0.7916,2801.6,2800.9,2.8562]
[1740324698543,0.7916,2801.6,2801.1,2.85601]
[1740324698742,0.7916,2801.6,2801.1,2.85594]
[1740324698980,0.7916,2801.6,2801.0,2.8561]
[1740324699355,0.7916,2801.6,2800.7,3.67266]
[1740324699557,5.83223,2801.8,2800.3,2.88743135]
[1740324699558,3.40568,2801.5,2800.4,0.8163]
[1740324699758,0.7916,2801.3,2800.2,3.67318]
[1740324699973,0.7916,2801.1,2800.3,2.85677]
[1740324700164,3.7685,2801.1,2800.3,2.85677]
[1740324701475,0.55,2801.0,2800.2,5.85693]
[1740324701789,0.7916,2800.7,2799.8,2.85725]
[1740324701976,0.7916,2800.7,2799.9,2.85718]
[1740324702351,0.7916,2800.7,2799.6,0.8163]
[1740324702352,0.55,2800.6,2799.6,0.8163]
[1740324702575,0.7916,2800.4,2799.5,2.85757]
[1740324703052,0.7916,2800.4,2799.6,2.85752]
[1740324703479,0.7916,2800.4,2799.7,0.03397347]
[1740324704075,0.55,2800.3,2799.4,2.90900071]
[1740324704285,1.132275,2800.2,2799.4,2.90900071]
[1740324704475,0.7916,2800.2,2799.5,0.03575348]
[1740324704873,0.8317,2800.0,2799.5,0.03575348]
[1740324705087,3.8086,2800.0,2799.5,0.03575348]
[1740324705289,3.8086,2800.0,2799.4,0.05130071]
[1740324705590,0.8317,2799.9,2799.6,0.03481178]
[1740324705793,0.38086,2799.8,2799.4,0.05130071]
[1740324705960,0.8317,2799.6,2799.4,0.05130071]
[1740324706165,4.00513135,2799.6,2799.5,1.78e-06]
[1740324706397,4.00513135,2799.6,2799.1,0.005]
[1740324706398,2.85785,2799.4,2799.1,0.005]
[1740324706596,9.86308135,2799.2,2799.1,0.005]
[1740324706778,11.71417449,2799.2,2799.1,0.005]
[1740324707402,16.95417449,2799.2,2799.1,0.005]
[1740324707706,11.47279314,2799.2,2799.1,0.005]
[1740324707905,8.47279314,2799.2,2799.1,0.005]
[1740324708203,6.0717,2799.2,2799.1,0.005]
[1740324708392,6.05276557,2799.2,2799.1,0.005]
[1740324708589,6.78037123,2799.2,2799.1,0.005]
[1740324709910,7.33037123,2799.2,2799.1,0.005]
[1740324710112,16.48694144,2799.2,2799.1,0.005]
[1740324710305,18.42142158,2799.2,2799.1,0.005]
[1740324710977,15.56347158,2799.2,2799.1,0.005]
[1740324711184,12.26485137,2799.2,2799.1,0.005]
[1740324712107,15.12280137,2799.2,2799.1,0.005]
[1740324712311,18.42142158,2799.2,2799.1,0.005]
[1740324713615,15.56347158,2799.2,2799.1,0.005]
[1740324713828,18.68542158,2799.2,2799.1,0.005]
[1740324714822,15.82747158,2799.2,2799.1,0.005]
[1740324715199,18.68542158,2799.2,2799.1,0.005]
[1740324717521,0.3536,2798.5,2796.9,0.264]
[1740324717815,3.29862021,2798.7,2797.3,2.85989]
[1740324717816,0.55,2798.1,2797.3,2.85989]
[1740324718218,0.55,2798.1,2797.0,2.8601]
[1740324718423,0.3536,2798.0,2797.0,2.8601]
[1740324718588,0.3536,2798.0,2796.8,0.8273]
[1740324718789,0.55,2797.9,2797.5,2.85961]
[1740324719229,0.3536,2798.0,2797.3,5.71967]
[1740324719386,0.3536,2798.0,2797.3,2.85983]
[1740324719834,0.55,2797.9,2797.3,5.71967]
[1740324720019,0.55,2797.9,2796.8,0.8273]
[1740324720322,0.55,2797.9,2797.2,2.85998]
[1740324720522,0.55,2797.9,2797.1,2.86008]
[1740324720709,0.55,2797.9,2797.7,2.8594]
[1740324720897,0.3536,2798.0,2796.8,0.8273]
[1740324721104,0.3536,2798.0,2797.7,2.85948]
[1740324722133,0.3536,2798.0,2797.8,2.85934]
[1740324722339,2.85839,2798.8,2797.4,0.8273]
[1740324722340,1.0669,2798.9,2798.2,2.85891]
[1740324722637,0.8029,2798.7,2797.9,2.85919]
[1740324722805,0.8029,2798.6,2797.8,2.85932]
[1740324723011,0.55,2798.5,2797.8,2.85932]
[1740324723209,0.55,2798.5,2798.0,2.85917]
[1740324723410,0.55,2798.5,2798.1,2.85906]
[1740324723620,0.43529,2798.5,2798.3,2.8588]
[1740324723817,0.8029,2798.6,2797.7,5.71886]
[1740324724019,0.8029,2798.6,2797.8,2.85936]
[1740324724241,0.8029,2798.6,2797.5,2.85961]
[1740324724242,0.55,2798.5,2797.5,2.85961]
[1740324724541,0.55,2798.3,2797.5,2.85961]
[1740324724720,0.55,2798.3,2797.7,2.85939]
[1740324725304,0.777,2798.4,2797.4,0.8273]
[1740324725517,6.017,2798.4,2798.2,2.85893]
[1740324725739,5.24,2798.4,2798.2,5.71785]
[1740324725911,5.24,2798.4,2798.2,2.85892]
[1740324726311,5.24,2798.4,2798.2,2.8589]
[1740324726604,5.24,2798.5,2798.4,2.85877]
[1740324726807,5.24,2798.7,2798.6,2.85857]
[1740324728220,0.777,2799.4,2798.5,0.7804]
[1740324728428,6.017,2799.4,2799.1,2.85803]
[1740324728837,6.017,2799.4,2799.3,2.85785]
[1740324729042,3.29862021,2800.2,2798.3,3.29862021]
[1740324729043,0.777,2799.7,2798.7,0.7804]
[1740324729361,0.777,2799.7,2799.4,2.85775]
[1740324729555,3.777,2799.7,2799.3,2.85776]
[1740324729725,3.777,2799.7,2799.4,2.85771]
[1740324730251,0.777,2799.7,2799.3,2.85776]
[1740324730451,3.777,2799.7,2799.3,2.85776]
[1740324730746,4.7337,2799.7,2799.1,2.85805]
[1740324731056,4.7337,2799.7,2799.2,2.85795]
[1740324731754,4.7337,2799.7,2799.2,2.8579]
[1740324731907,1.7337,2799.7,2799.4,2.85767]
[1740324732108,5.24,2799.8,2799.7,2.85744]
[1740324732363,5.24,2800.0,2799.8,2.85726]
[1740324732532,5.24,2800.0,2799.6,2.85745]
[1740324732713,5.24,2800.0,2799.6,2.85755]
[1740324733550,5.24,2800.0,2799.7,2.85743]
[1740324733916,5.24,2800.0,2799.8,2.85726]
[1740324734253,5.24,2800.1,2800.0,2.85714]
[1740324734624,0.8218,2800.6,2800.5,2.85663]
[1740324734819,0.60618,2800.6,2800.4,2.85665]
[1740324735311,0.60618,2800.6,2800.2,2.85688]
[1740324735715,0.60618,2800.6,2800.1,2.85698]
[1740324735912,3.67844,2800.5,2799.5,2.85764]
[1740324736133,0.55,2800.3,2799.5,2.85764]
[1740324736342,0.55,2800.1,2799.5,2.85764]
[1740324736766,0.55,2800.1,2799.6,2.85754]
[1740324737266,0.55,2800.1,2799.4,2.85769]
[1740324737423,0.8218,2800.0,2799.4,5.71539]
[1740324737764,0.8218,2800.0,2799.4,2.85769]
[1740324738134,0.8218,2800.0,2799.3,0.8218]
[1740324738345,0.8218,2800.0,2799.5,2.85765]
[1740324738862,0.55,2799.9,2799.1,2.85799]
[1740324739058,5.79,2799.9,2798.9,0.8218]
[1740324739355,0.55,2799.7,2798.9,0.8218]
[1740324739557,0.55,2799.7,2798.5,0.8218]
[1740324739558,6.0618,2799.6,2798.5,0.8218]
[1740324739760,8.91939,2799.6,2798.5,3.68047]
[1740324739960,3.55,2799.5,2798.5,0.8218]
[1740324740256,0.55,2799.2,2798.2,0.8218]
[1740324740589,3.55,2799.0,2797.8,0.8218]
[1740324740859,5.24,2798.9,2798.2,2.85896]
[1740324741059,5.24,2798.9,2798.4,2.85877]
[1740324741363,0.90618,2798.9,2798.2,2.85891]
[1740324741581,0.90618,2798.9,2798.2,5.71781]
[1740324741786,0.90618,2798.9,2797.8,3.6811]
[1740324742086,9.00445,2798.9,2797.9,2.85926]
[1740324742428,2.85847,2798.7,2797.8,0.8218]
[1740324742777,0.55,2798.6,2797.8,0.8218]
[1740324743086,0.55,2798.7,2797.8,3.68114]
[1740324743896,0.774,2798.6,2797.8,0.8218]
[1740324744032,0.774,2798.6,2797.9,2.85922]
[1740324744226,1.0264445,2798.6,2797.9,2.85922]
[1740324744741,6.2664445,2798.6,2797.9,2.85922]
[1740324746168,6.2664445,2798.6,2797.8,0.8218]
[1740324746375,3.40873,2798.5,2797.5,0.7703]
[1740324746671,0.8189,2798.0,2797.2,2.86]
[1740324747022,0.8189,2798.0,2797.0,2.86014]
[1740324747229,5.79,2797.9,2796.9,0.7703]
[1740324747467,5.79,2797.9,2796.8,2.86031]
[1740324747760,8.64934,2797.9,2796.9,2.8603]
[1740324748067,0.946824,2797.8,2796.9,2.8603]
[1740324748266,0.946824,2797.8,2797.2,2.85998]
[1740324748566,0.946824,2797.8,2797.4,2.85978]
[1740324748886,5.24,2797.9,2797.6,2.85955]
[1740324749033,5.24,2797.9,2797.4,2.85979]
[1740324749228,5.24,2797.9,2797.3,3.63018]
[1740324749560,5.24,2797.9,2797.1,2.86004]
[1740324749748,0.60589,2797.8,2797.0,0.7524]
[1740324749953,5.24,2797.9,2797.6,2.85958]
[1740324750354,5.24,2797.9,2797.5,2.85962]
[1740324750659,5.24,2797.9,2797.6,2.85959]
[1740324750866,6.0589,2798.0,2797.6,2.85959]
[1740324751168,6.0589,2798.0,2797.1,2.86004]
[1740324751169,0.55,2797.9,2797.1,2.86004]
[1740324751377,0.66089,2797.8,2797.3,2.85987]
[1740324751672,0.66089,2797.8,2796.9,2.86024]
[1740324752039,0.66089,2797.8,2797.0,2.8602]
[1740324752562,0.66089,2797.8,2797.0,2.8102]
[1740324753261,0.7567,2797.6,2796.9,2.86024]
[1740324753463,3.40971,2797.5,2796.7,0.1502965]
[1740324753664,0.940641,2797.4,2796.7,0.1502965]
[1740324754230,0.7567,2797.2,2796.7,0.1502965]
[1740324754773,0.7567,2797.2,2796.7,3.0107865]
[1740324755064,0.7567,2797.2,2797.0,2.86018]
[1740324755267,0.7567,2797.2,2796.9,2.86026]
[1740324755566,0.940641,2797.4,2797.0,2.86013]
[1740324755761,0.940641,2797.4,2797.3,2.8599]
[1740324756543,0.940641,2797.4,2797.1,2.86005]
[1740324756767,0.940641,2797.4,2796.7,3.0107165]
[1740324756984,0.940641,2797.4,2796.8,2.86038]
[1740324757466,0.940641,2797.4,2796.9,2.86029]
[1740324757652,5.9967,2797.6,2797.3,2.8599]
[1740324757965,5.9967,2797.6,2797.2,2.85991]
[1740324758266,5.9967,2797.6,2797.3,2.85989]
[1740324758639,5.9967,2797.6,2797.1,2.86005]
[1740324758843,5.9967,2797.6,2797.3,2.85988]
[1740324759027,5.24,2797.6,2797.3,2.85988]
[1740324759234,5.24,2797.6,2797.5,2.85969]
[1740324759740,5.24,2797.6,2797.1,2.86003]
[1740324760063,5.885089,2797.6,2797.2,2.85999]
[1740324760364,5.885089,2797.6,2797.4,2.85977]
[1740324760562,5.885089,2797.6,2797.2,2.85995]
[1740324761067,5.885089,2797.6,2797.0,2.86015]
[1740324761269,5.885089,2797.6,2797.2,2.85999]
[1740324762261,5.885089,2797.6,2797.2,2.85994]
[1740324762572,1.3452089,2797.5,2796.8,2.86035]
[1740324763068,0.55,2797.4,2796.7,0.1502965]
[1740324763272,0.55,2797.2,2796.7,0.1502965]
[1740324763439,0.7567,2797.2,2796.7,0.1502965]
[1740324763636,0.7567,2796.8,2796.7,0.1502965]
[1740324763833,5.9967,2796.8,2796.7,0.1502965]
[1740324764571,6.5467,2796.8,2796.7,0.1502965]
[1740324765136,5.9967,2796.8,2796.7,0.1502965]
[1740324765582,6.5467,2796.8,2796.7,0.1502965]
[1740324765782,7.20137,2796.8,2796.7,0.1502965]
[1740324768143,13.06178,2796.8,2796.7,0.1502965]
[1740324768363,10.25147,2796.8,2796.7,0.1502965]
[1740324768749,13.11188,2796.8,2796.7,0.1502965]
[1740324769549,13.81829994,2796.8,2796.7,0.86201656]
[1740324774307,13.81829994,2796.8,2795.1,2.86214]
[1740324774308,0.55,2795.8,2795.1,2.86214]
[1740324774507,8.6515,2795.8,2794.9,6.52466]
[1740324774803,5.79,2795.8,2795.0,2.86225]
[1740324775008,0.55,2795.6,2795.0,2.86225]
[1740324775300,6.51727,2795.7,2794.7,2.86249]
[1740324775481,0.55,2795.4,2794.7,2.86249]
[1740324775802,0.55,2795.4,2795.1,2.86209]
[1740324776003,0.55,2795.4,2795.2,2.86197]
[1740324776297,0.55,2795.4,2794.7,2.8625]
[1740324776479,3.62868,2795.5,2794.7,2.8625]
[1740324776480,0.55,2795.2,2794.7,2.8625]
[1740324776675,0.55,2795.2,2794.9,2.86228]
[1740324776893,0.55,2795.2,2795.0,2.86221]
[1740324777087,0.55,2795.2,2795.1,2.86215]
[1740324777303,0.55,2795.2,2795.0,2.86224]
[1740324777556,0.55,2795.2,2794.6,0.8001]
[1740324777676,0.7669,2795.5,2794.6,0.8001]
[1740324777876,0.7669,2795.5,2794.7,2.86256]
[1740324778077,0.7669,2795.5,2795.4,2.86184]
[1740324778383,5.24,2795.5,2795.4,2.86184]
[1740324780015,5.24,2796.0,2795.9,2.86133]
[1740324780719,6.0069,2796.2,2796.0,2.86113]
[1740324780904,5.24,2796.2,2796.1,2.86112]
[1740324781713,5.24,2797.0,2796.1,2.86112]
[1740324781902,5.24,2797.1,2795.9,0.8001]
[1740324782108,3.95833718,2797.0,2796.2,2.86096]
[1740324782302,0.55,2796.9,2796.2,2.86096]
[1740324782994,0.55,2796.9,2796.1,2.86102]
[1740324783407,0.55,2796.7,2796.2,2.86101]
[1740324784285,0.55,2796.7,2796.3,2.86092]
[1740324784485,0.55,2796.7,2795.7,2.86145]
[1740324784486,0.7614,2796.4,2795.7,2.86145]
[1740324784685,3.55,2796.2,2795.4,2.86178]
[1740324784898,0.55,2795.9,2795.0,3.65926]
[1740324785101,0.7614,2796.0,2794.6,0.7971]
[1740324785102,0.55,2795.7,2794.6,0.7971]
[1740324785281,0.55,2795.5,2794.6,0.7971]
[1740324785480,0.55,2795.3,2794.6,2.8626]
[1740324785682,0.55,2795.1,2794.6,2.86259]
[1740324785882,1.56014,2795.1,2794.6,2.86259]
[1740324786317,6.80014,2795.1,2794.2,2.86301]
[1740324786521,6.80014,2795.1,2794.7,2.86252]
[1740324786722,5.24,2795.1,2795.0,2.86225]
[1740324787223,2.86086,2796.4,2795.0,2.86225]
[1740324787224,0.27145784,2796.5,2796.0,2.86115]
[1740324787525,3.7614,2796.3,2795.3,2.86194]
[1740324787727,3.0,2796.1,2795.9,2.86126]
[1740324787889,8.24,2796.1,2795.9,2.86126]
[1740324788090,9.14014,2796.1,2796.0,2.86123]
[1740324788311,5.24,2796.1,2796.0,2.86123]
[1740324789103,5.24,2796.1,2795.8,2.86137]
[1740324789330,5.24,2796.1,2795.7,2.86152]
[1740324789490,0.7559,2796.0,2795.7,2.86152]
[1740324789826,0.7559,2796.0,2795.8,2.86137]
[1740324790030,0.7559,2796.0,2795.9,2.86133]
[1740324790236,5.24,2796.1,2796.0,2.86123]
[1740324791231,5.24,2796.1,2795.9,3.63893]
[1740324791232,5.24,2796.6,2796.5,2.86071]
[1740324791406,0.7559,2796.8,2796.7,2.86051]
[1740324791407,5.24,2796.8,2796.7,2.86051]
[1740324792037,5.764,2796.8,2796.4,2.8608]
[1740324792206,0.7559,2796.7,2796.4,2.8608]
[1740324792405,5.764,2796.8,2796.3,2.86086]
[1740324792637,5.24,2796.8,2796.6,0.7776]
[1740324792959,5.24,2796.8,2796.7,2.86051]
[1740324794930,5.24,2796.8,2796.4,2.86072]
[1740324795150,5.9959,2796.8,2796.6,2.86052]
[1740324795364,5.24,2796.8,2796.7,2.86051]
[1740324796431,0.7559,2797.3,2797.2,2.86]
[1740324796650,5.83959,2797.3,2797.2,2.86]
[1740324796933,8.83959,2797.3,2797.2,2.86]
[1740324797350,0.59959,2797.3,2797.2,2.86]
[1740324797563,0.7559,2797.6,2797.4,5.71943]
[1740324797881,0.7559,2797.6,2797.0,2.86015]
[1740324798059,0.7559,2797.6,2797.1,2.86009]
[1740324798246,0.55,2797.5,2797.3,2.85986]
[1740324798565,0.55,2797.5,2797.1,2.86004]
[1740324798758,0.55,2797.5,2797.3,2.85986]
[1740324799142,0.7559,2797.6,2797.3,2.85982]
[1740324799336,0.7559,2797.6,2797.3,2.85987]
[1740324799561,3.0,2797.9,2797.5,2.85969]
[1740324799767,6.13959,2797.8,2797.5,2.85969]
[1740324799968,6.13959,2797.8,2797.7,2.85949]
[1740324800748,9.13959,2797.8,2797.5,2.85969]
[1740324800943,9.13959,2797.8,2797.5,2.85963]
[1740324801870,9.13959,2797.8,2797.7,2.85949]
[1740324801871,5.24,2797.8,2797.7,2.85949]
[1740324805272,5.24,2797.8,2797.3,0.7776]
[1740324805480,0.55,2797.6,2797.1,2.86005]
[1740324806974,0.55,2797.6,2797.1,2.86004]
[1740324807188,5.79,2797.6,2797.4,2.85976]
[1740324807500,5.24,2797.6,2797.5,2.85969]
[1740324808874,5.24,2797.6,2797.4,2.85974]
[1740324809129,5.24,2797.6,2797.4,5.71948]
[1740324809313,5.24,2797.6,2797.4,5.71947]
[1740324809678,5.24,2797.6,2797.5,2.85969]
[1740324810609,5.24,2797.6,2797.4,2.85973]
[1740324810911,0.7534,2797.5,2797.0,2.8601]
[1740324811108,0.7534,2797.5,2797.1,2.86008]
[1740324811355,0.7534,2797.5,2796.9,3.67753]
[1740324811610,5.79,2797.4,2796.6,3.61861]
[1740324811777,0.65434,2797.3,2796.9,2.8603]
[1740324811971,5.24,2797.2,2796.7,2.86043]
[1740324812338,0.7542,2797.0,2796.5,2.8607]
[1740324812607,0.55,2796.9,2796.4,2.86082]
[1740324812975,0.55,2796.9,2796.7,2.86044]
[1740324813207,0.43042,2796.9,2796.7,2.86044]